bitfinex/quotes_ETHUSD_20251218
["timestamp","ask_amount","ask_price","bid_price","bid_amount"]
[1766031076286,1.73085401,2837.2,2836.4,0.58117597]
[1766031076486,1.73085401,2837.2,2836.5,6.3132]
[1766031078188,1.17085401,2837.2,2836.4,0.58117597]
[1766031078383,0.001,2837.4,2836.4,4.1067099]
[1766031078384,1.2584,2837.4,2836.4,4.1067099]
[1766031078717,1.2584,2837.4,2836.6,1.7493]
[1766031078924,0.46438023,2837.3,2836.6,6.3132]
[1766031079088,1.16388023,2837.3,2836.6,6.3132]
[1766031079721,4.22398483,2837.3,2836.6,6.3132]
[1766031079944,5.10134652,2837.3,2836.6,6.3132]
[1766031081217,2.04124192,2837.3,2836.6,6.3132]
[1766031082820,2.04124192,2837.3,2836.7,6.3132]
[1766031083016,2.04124192,2837.3,2836.4,0.58117597]
[1766031083220,2.04124192,2837.3,2836.4,6.89437597]
[1766031083590,1.90174192,2837.3,2836.6,6.33437597]
[1766031084005,1.43736169,2837.3,2836.6,6.33437597]
[1766031084218,0.001,2837.4,2836.9,0.02117597]
[1766031084417,0.001,2837.4,2837.0,1.7493]
[1766031084606,0.7123,2837.4,2836.7,6.3132]
[1766031084808,3.98975194,2837.4,2836.4,6.89437597]
[1766031085004,5.1169666,2837.4,2836.4,6.89437597]
[1766031085494,0.4006,2837.1,2836.4,6.89437597]
[1766031085689,0.7132,2837.1,2836.4,6.89437597]
[1766031086519,0.7132,2837.1,2836.4,0.58117597]
[1766031086704,0.7132,2837.1,2836.5,6.3132]
[1766031087892,0.7142,2837.1,2836.5,6.3132]
[1766031088222,0.3174,2837.0,2836.3,6.3132]
[1766031088427,0.7167,2837.0,2836.4,0.56]
[1766031088728,0.001,2837.1,2836.4,6.8732]
[1766031088934,0.001,2837.1,2836.5,0.02117597]
[1766031089140,0.001,2837.1,2836.6,6.3132]
[1766031089318,0.001,2837.1,2836.6,1.7493]
[1766031089628,0.001,2837.1,2836.4,4.08557521]
[1766031089629,0.001,2837.1,2836.4,0.56]
[1766031089827,0.7211,2837.1,2836.4,0.56]
[1766031090030,4.00631501,2837.1,2836.4,0.56]
[1766031090329,0.7201,2837.0,2836.1,6.89437597]
[1766031090531,0.7217,2837.0,2836.1,6.89437597]
[1766031090731,4.00631501,2837.1,2836.1,6.89437597]
[1766031091232,0.7217,2837.0,2836.2,6.3132]
[1766031091731,0.7217,2837.0,2836.1,4.1071444]
[1766031092027,0.001,2837.1,2836.6,4.5639]
[1766031092202,0.7243,2837.1,2836.3,6.7435706]
[1766031092399,0.7243,2837.1,2836.4,6.3132]
[1766031093708,0.7243,2837.1,2836.3,3.5468614]
[1766031093907,0.7243,2837.1,2836.4,6.3132]
[1766031094208,0.7243,2837.1,2836.5,6.3132]
[1766031094911,0.001,2837.1,2836.3,0.02117597]
[1766031095112,0.7276,2837.1,2836.3,0.02117597]
[1766031095432,0.7276,2837.1,2836.4,0.3546959]
[1766031096504,0.7276,2837.1,2836.4,0.3566959]
[1766031097430,0.729,2837.0,2836.4,0.3566959]
[1766031098150,0.001,2837.1,2836.4,6.6698959]
[1766031098515,0.73,2837.1,2836.4,6.6698959]
[1766031099327,0.73,2837.1,2836.5,0.50517687]
[1766031099328,0.001,2837.1,2836.5,0.50517687]
[1766031099532,0.001,2837.1,2836.7,1.7493]
[1766031099830,0.001,2837.1,2836.7,6.33437597]
[1766031100638,0.3907,2837.1,2836.7,0.02117597]
[1766031100840,0.7322,2837.1,2836.5,6.81837687]
[1766031101035,0.7322,2837.1,2836.6,6.6678959]
[1766031102426,0.3907,2837.1,2836.6,6.6678959]
[1766031102745,0.001,2837.1,2837.0,0.199]
[1766031111058,0.001,2837.1,2836.7,6.37467597]
[1766031114074,0.001,2837.1,2836.8,4.5998]
[1766031114775,0.001,2837.1,2836.8,6.3535]
[1766031116075,0.001,2837.1,2836.7,0.02117597]
[1766031116376,0.001,2837.1,2836.8,6.3535]
[1766031117276,0.001,2837.1,2836.8,1.7537]
[1766031117462,0.001,2837.1,2836.9,1.7537]
[1766031117774,0.001,2837.1,2836.9,6.3535]
[1766031118270,0.001,2837.1,2836.7,0.02117597]
[1766031118478,0.001,2837.1,2836.8,6.3535]
[1766031120648,0.001,2837.1,2836.7,6.37467597]
[1766031121175,0.001,2837.1,2836.7,0.02117597]
[1766031121475,0.001,2837.1,2836.6,6.3535]
[1766031122176,0.001,2837.1,2836.7,6.3535]
[1766031122476,0.001,2837.1,2836.5,6.93367597]
[1766031122670,0.001,2837.1,2836.5,0.58017597]
[1766031122671,0.3754,2836.9,2836.5,0.58017597]
[1766031122978,0.5506,2837.0,2836.5,6.93367597]
[1766031123386,0.5506,2837.0,2836.5,0.58017597]
[1766031123771,0.5506,2837.0,2836.6,6.3535]
[1766031124070,0.001,2837.3,2836.9,0.02117597]
[1766031124377,0.001,2837.4,2837.0,6.3535]
[1766031124579,0.001,2837.4,2837.0,4.5998]
[1766031124880,0.001,2837.4,2837.0,6.3535]
[1766031125081,0.001,2837.4,2837.0,1.7537]
[1766031125253,0.001,2837.4,2837.2,6.3535]
[1766031125577,0.001,2837.4,2837.0,6.3535]
[1766031126282,0.001,2837.4,2836.9,3.52491058]
[1766031126478,0.001,2837.4,2837.2,6.3535]
[1766031128153,0.001,2837.4,2837.2,4.5998]
[1766031128354,0.001,2837.4,2837.1,4.5998]
[1766031128653,0.001,2837.4,2837.1,6.3535]
[1766031137490,0.001,2837.4,2837.1,1.7537]
[1766031137686,0.001,2837.4,2837.0,0.02117597]
[1766031137863,0.001,2837.4,2837.2,5.9867]
[1766031140587,0.46438023,2837.9,2837.3,5.9867]
[1766031140588,1.58458023,2837.9,2837.3,5.9867]
[1766031140792,0.5613,2837.8,2837.3,5.9867]
[1766031141194,0.2016,2837.7,2837.3,4.1979]
[1766031141395,0.5613,2837.7,2837.3,4.1979]
[1766031142197,0.5613,2837.7,2837.3,5.9867]
[1766031142997,0.559,2837.9,2837.3,5.9867]
[1766031143195,0.559,2837.9,2837.0,3.54794986]
[1766031143196,1.12,2837.9,2837.0,0.02317597]
[1766031143394,0.46538023,2838.0,2837.2,5.9867]
[1766031143395,0.3573,2837.8,2837.2,5.9867]
[1766031143696,1.02518023,2837.9,2837.3,5.9867]
[1766031144004,0.3561,2837.7,2837.3,5.9867]
[1766031144167,0.5608,2837.7,2837.3,5.9867]
[1766031145596,0.5618,2837.7,2837.3,5.9867]
[1766031146774,0.5618,2837.7,2837.1,0.41071311]
[1766031147093,0.5618,2837.7,2837.2,6.38256836]
[1766031147895,0.001,2837.7,2837.2,0.39586836]
[1766031148095,0.001,2837.7,2837.2,3.94163915]
[1766031148392,0.001,2837.7,2837.3,1.7888]
[1766031148592,0.001,2837.7,2837.4,5.9867]
[1766031152009,0.001,2837.7,2837.4,4.1979]
[1766031152182,0.001,2837.7,2837.3,5.9867]
[1766031152514,0.5603,2837.7,2837.3,5.9867]
[1766031152694,0.5603,2837.7,2837.0,6.00987597]
[1766031153080,0.5591,2837.6,2837.3,0.002]
[1766031156807,0.001,2837.7,2837.4,5.9867]
[1766031157717,0.559,2837.9,2837.3,0.002]
[1766031157884,1.02338023,2837.9,2837.3,0.002]
[1766031158194,0.3402,2837.6,2837.3,0.002]
[1766031158524,0.5552,2837.6,2837.3,0.002]
[1766031160902,0.215,2837.6,2837.3,0.002]
[1766031161219,0.3366,2837.5,2837.3,0.002]
[1766031161392,0.5525,2837.5,2837.3,0.002]
[1766031162020,0.5505,2837.6,2837.3,0.002]
[1766031166042,0.001,2837.7,2837.3,0.002]
[1766031166320,0.3309,2837.5,2837.3,0.002]
[1766031166527,0.5482,2837.5,2837.3,0.002]
[1766031166733,0.5463,2837.7,2837.0,0.002]
[1766031166900,0.001,2837.7,2837.0,0.002]
[1766031167233,0.5453,2837.6,2837.0,0.002]
[1766031167410,0.2156,2837.5,2837.0,0.002]
[1766031167611,0.5442,2837.4,2837.0,0.002]
[1766031168996,0.5442,2837.4,2837.3,0.002]
[1766031174724,0.46438023,2837.6,2836.7,0.02117597]
[1766031174725,4.52119308,2837.6,2836.7,0.02117597]
[1766031175424,4.52119308,2837.6,2836.7,6.40707597]
[1766031175801,3.98849308,2837.6,2837.3,0.002]
[1766031176002,0.5316,2837.5,2837.3,0.002]
[1766031177130,0.8759,2837.6,2837.3,0.002]
[1766031177302,0.3169,2837.6,2837.3,0.002]
[1766031177904,0.5308,2837.6,2837.3,0.002]
[1766031178937,0.001,2837.7,2837.3,6.3879]
[1766031179623,0.5283,2837.7,2837.3,0.002]
[1766031179825,0.5273,2837.6,2837.3,0.002]
[1766031180618,0.5262,2837.6,2837.3,0.002]
[1766031180817,0.001,2837.7,2837.3,0.002]
[1766031181114,0.5262,2837.6,2837.3,0.002]
[1766031181318,0.3117,2837.6,2837.3,0.002]
[1766031181527,0.5249,2837.5,2837.3,0.002]
[1766031181724,0.46438023,2837.6,2836.9,6.3859]
[1766031181930,0.5232,2837.5,2836.9,6.3859]
[1766031182126,0.46438023,2837.6,2836.9,6.3859]
[1766031182342,0.5232,2837.6,2836.9,4.6359]
[1766031182636,0.80819818,2837.7,2837.3,0.002]
[1766031182804,0.522,2837.6,2837.3,0.002]
[1766031187316,0.001,2837.7,2837.3,0.002]
[1766031187636,0.5174,2837.7,2837.3,0.002]
[1766031187827,0.5164,2837.6,2837.3,0.002]
[1766031188407,0.001,2837.7,2837.3,0.002]
[1766031188738,0.5151,2837.6,2837.3,0.002]
[1766031189140,0.5161,2837.6,2837.3,0.002]
[1766031189437,0.001,2837.6,2837.3,0.002]
[1766031189641,0.515,2837.6,2837.3,0.002]
[1766031191045,0.001,2837.6,2837.3,0.002]
[1766031191416,0.513,2837.6,2837.3,0.002]
[1766031191757,0.001,2837.6,2837.3,0.002]
[1766031192727,0.513,2837.6,2837.3,0.002]
[1766031193034,0.001,2837.6,2837.4,6.2789]
[1766031193634,0.001,2837.6,2837.3,6.2809]
[1766031195237,0.001,2837.6,2837.4,6.2789]
[1766031196135,0.001,2837.6,2837.3,0.002]
[1766031196643,0.5084,2837.6,2837.3,0.002]
[1766031196848,0.5074,2837.5,2837.3,0.002]
[1766031197247,0.001,2837.6,2837.3,0.002]
[1766031197752,0.219,2837.6,2837.3,0.002]
[1766031197946,0.2883,2837.5,2837.3,0.002]
[1766031198254,0.219,2837.6,2837.3,0.002]
[1766031198547,0.5073,2837.6,2837.3,0.002]
[1766031200320,0.5039,2837.5,2837.0,0.58017597]
[1766031200520,0.5039,2837.5,2837.0,7.32244562]
[1766031200736,0.5039,2837.5,2837.0,7.30126965]
[1766031201133,0.5039,2837.5,2837.1,6.2789]
[1766031201534,1.0089,2837.6,2837.1,6.2789]
[1766031202177,0.5093,2837.6,2837.1,6.2789]
[1766031202384,0.4996,2837.5,2837.1,6.2789]
[1766031203363,0.283,2837.5,2837.3,0.002]
[1766031203538,1.0078,2837.6,2837.3,0.002]
[1766031204437,0.4995,2837.6,2837.3,0.002]
[1766031218056,0.001,2837.6,2837.3,6.2809]
[1766031221275,0.001,2837.6,2837.4,4.4367]
[1766031221465,0.001,2837.6,2837.4,6.2789]
[1766031222252,0.001,2837.6,2837.3,0.002]
[1766031222550,0.001,2837.6,2837.4,6.1912]
[1766031223173,0.001,2837.6,2837.3,6.1932]
[1766031229788,0.001,2837.6,2837.4,4.3866]
[1766031230486,0.4672,2837.6,2837.3,0.002]
[1766031230786,0.2444,2837.5,2837.3,0.002]
[1766031231086,0.2444,2837.4,2836.7,0.02117597]
[1766031231287,0.2444,2837.4,2836.6,0.002]
[1766031231288,0.2444,2837.2,2836.6,0.002]
[1766031231589,0.2444,2837.0,2836.6,0.002]
[1766031232355,0.2431,2836.9,2836.6,0.002]
[1766031232760,0.3843801,2836.9,2836.6,0.002]
[1766031234996,0.1412801,2836.9,2836.6,0.002]
[1766031236563,0.4052801,2836.9,2836.6,0.002]
[1766031239695,0.1412801,2836.9,2836.7,4.3866]
[1766031239898,0.1412801,2836.9,2836.6,6.1932]
[1766031240593,0.001,2837.0,2836.7,0.05642819]
[1766031240763,0.001,2837.0,2836.9,6.1912]
[1766031240967,0.001,2837.0,2836.8,6.1912]
[1766031249103,0.001,2837.6,2837.3,6.0436]
[1766031249282,0.001,2837.6,2837.2,6.0436]
[1766031249472,0.001,2837.6,2837.3,4.2111]
[1766031249679,0.001,2837.6,2836.9,0.58017597]
[1766031249897,0.001,2837.6,2837.4,6.0436]
[1766031250093,0.001,2837.6,2837.4,9.56790999]
[1766031250294,0.001,2838.0,2837.7,4.2111]
[1766031250499,0.001,2838.0,2837.7,6.0436]
[1766031251903,0.001,2838.0,2837.5,0.16240768]
[1766031252204,0.001,2838.0,2837.6,6.0721]
[1766031253084,0.001,2838.0,2837.7,0.02117597]
[1766031253480,0.001,2838.0,2837.8,6.3479]
[1766031254502,0.001,2838.0,2837.8,6.48911825]
[1766031255096,0.001,2838.1,2838.0,1.7054]
[1766031255306,0.001,2838.1,2838.0,6.3479]
[1766031255695,0.001,2838.1,2837.9,6.48911426]
[1766031256019,0.001,2838.1,2838.0,4.6425]
[1766031256513,0.56,2838.5,2837.9,0.14121426]
[1766031256808,0.5042,2838.4,2838.0,6.3479]
[1766031257003,0.001,2838.5,2837.9,0.14121426]
[1766031257511,0.001,2838.5,2838.0,6.3479]
[1766031257681,0.504,2838.5,2838.0,6.3479]
[1766031259485,0.504,2838.5,2837.9,0.14121426]
[1766031259693,0.504,2838.5,2838.0,0.02117597]
[1766031260309,0.001,2838.5,2838.0,1.72657597]
[1766031260612,0.5007,2838.5,2838.1,6.3479]
[1766031260809,0.5007,2838.5,2838.1,4.6425]
[1766031261694,0.5007,2838.5,2838.0,6.55797259]
[1766031261898,0.5007,2838.5,2838.0,0.02117597]
[1766031262084,0.5007,2838.5,2837.8,6.36907597]
[1766031262789,0.001,2838.5,2837.8,0.02117597]
[1766031262999,0.4975,2838.4,2837.8,0.02117597]
[1766031263428,0.001,2838.5,2838.1,1.7054]
[1766031263598,0.001,2838.6,2838.2,6.77826969]
[1766031263793,0.001,2838.8,2838.2,6.7430361]
[1766031264127,0.001,2838.8,2838.6,4.6425]
[1766031264292,0.001,2838.8,2838.6,6.3479]
[1766031264721,0.001,2839.2,2838.5,6.3479]
[1766031264895,0.001,2839.2,2838.3,6.3479]
[1766031265102,0.4962,2838.9,2838.6,0.02117597]
[1766031265310,0.001,2838.9,2838.6,0.02117597]
[1766031267328,0.494,2838.9,2838.2,0.51967597]
[1766031269925,0.558,2838.8,2837.8,0.02117597]
[1766031270109,1.43258584,2838.7,2837.8,4.66367597]
[1766031270720,4.95543417,2838.7,2837.8,4.66367597]
[1766031271537,0.0024,2838.5,2837.7,0.02117597]
[1766031271718,0.0024,2838.3,2837.5,0.02117597]
[1766031272034,0.0024,2838.2,2837.5,0.02117597]
[1766031272839,0.67242601,2838.4,2837.8,0.02117597]
[1766031273002,0.0017,2838.5,2838.0,0.02117597]
[1766031273908,0.558,2838.5,2837.8,0.02117597]
[1766031274110,1.1093482,2838.5,2837.8,0.02117597]
[1766031274922,1.1093482,2838.5,2837.8,4.66367597]
[1766031275126,0.5513482,2838.5,2837.8,4.66367597]
[1766031275431,1.1093482,2838.5,2837.8,6.36907597]
[1766031275598,4.63233589,2838.5,2837.8,6.36907597]
[1766031276225,0.46323359,2838.4,2837.8,6.36907597]
[1766031276520,0.46323359,2838.4,2837.8,6.37107597]
[1766031276922,0.46323359,2838.4,2837.8,0.02317597]
[1766031279226,3.98637324,2838.4,2837.8,0.002]
[1766031279419,0.46323359,2838.4,2837.8,0.002]
[1766031280400,1.1103482,2838.5,2837.9,0.02117597]
[1766031281530,0.5523482,2838.5,2837.9,0.02117597]
[1766031281828,1.1103482,2838.5,2837.9,0.02117597]
[1766031282219,4.6334064,2838.5,2837.9,0.02117597]
[1766031282816,4.0754064,2838.5,2837.9,0.02117597]
[1766031283020,0.001,2838.5,2838.3,6.28677597]
[1766031283219,0.001,2838.5,2838.4,6.2656]
[1766031283427,0.001,2838.5,2838.3,6.28677597]
[1766031286637,0.001,2838.5,2838.1,0.02117597]
[1766031291412,0.001,2838.5,2838.2,6.2656]
[1766031291735,0.001,2838.5,2838.1,0.02117597]
[1766031291936,0.001,2838.5,2838.1,6.28677597]
[1766031292308,0.001,2838.5,2838.2,6.2656]
[1766031293142,0.001,2838.5,2838.1,0.02117597]
[1766031294446,6.71720019,2838.2,2837.8,0.002]
[1766031294741,0.67172002,2838.1,2837.4,6.2656]
[1766031294948,6.71720019,2838.4,2837.4,6.2656]
[1766031295127,6.71720019,2838.2,2837.4,6.2656]
[1766031295508,6.71720019,2838.2,2837.3,0.57917597]
[1766031295509,6.71720019,2838.2,2837.8,0.002]
[1766031295714,6.71720019,2838.2,2837.3,0.57917597]
[1766031295932,7.38892021,2838.2,2837.5,0.02117597]
[1766031296526,10.91233229,2838.2,2837.5,0.02117597]
[1766031296845,4.1951321,2838.2,2837.5,0.02117597]
[1766031300522,0.67172002,2838.2,2837.5,6.28677597]
[1766031300724,7.718586,2838.2,2837.5,0.02117597]
[1766031301051,0.7718586,2838.1,2837.5,0.02117597]
[1766031301251,6.71720019,2837.9,2837.1,0.02117597]
[1766031301422,3.5238565,2837.8,2837.1,0.02117597]
[1766031301625,3.52378004,2837.9,2837.1,0.02117597]
[1766031301850,0.70474143,2837.8,2837.1,0.02117597]
[1766031302254,0.7718586,2838.1,2837.6,0.02117597]
[1766031302547,1.05931642,2838.3,2837.6,0.02117597]
[1766031302548,1.02238023,2838.3,2837.6,1.77867597]
[1766031302746,0.46438023,2838.3,2837.8,0.02117597]
[1766031303151,0.46438023,2838.3,2837.8,6.28677597]
[1766031303628,0.46438023,2838.1,2837.8,6.28677597]
[1766031303831,0.46438023,2838.1,2837.8,0.02117597]
[1766031304042,0.958334,2838.1,2837.8,0.02117597]
[1766031304549,0.958334,2838.1,2837.6,6.28677597]
[1766031305955,0.46438023,2838.3,2837.9,6.2656]
[1766031306649,3.52315987,2838.4,2837.9,6.2656]
[1766031306962,3.52315987,2838.4,2837.7,6.2656]
[1766031307140,3.52315987,2838.4,2837.8,0.02117597]
[1766031307458,4.38959746,2838.4,2837.8,0.02117597]
[1766031308155,4.38959746,2838.4,2837.7,6.2656]
[1766031308366,4.38959746,2838.4,2837.8,6.28677597]
[1766031308367,0.46438023,2838.4,2837.8,6.28677597]
[1766031308529,0.001,2838.5,2838.1,6.2656]
[1766031309460,0.46438023,2838.4,2838.1,6.2656]
[1766031310362,0.001,2838.5,2838.1,6.2656]
[1766031310542,0.001,2838.5,2838.0,0.02117597]
[1766031310862,0.001,2838.5,2838.0,4.52927597]
[1766031311094,0.001,2838.5,2838.2,0.02117597]
[1766031312076,3.5239943,2838.5,2837.8,0.02317597]
[1766031312272,0.46538023,2838.5,2837.8,0.02317597]
[1766031312565,0.46538023,2838.5,2837.8,6.13417597]
[1766031313238,0.46538023,2838.5,2837.9,6.111]
[1766031313439,0.46538023,2838.5,2838.1,6.111]
[1766031314938,0.46538023,2838.5,2838.1,1.7032]
[1766031315137,0.46538023,2838.5,2838.0,0.02117597]
[1766031315138,3.52398816,2838.5,2838.0,6.13217597]
[1766031315757,3.52398816,2838.5,2838.0,0.02117597]
[1766031316052,3.87638698,2838.5,2838.0,0.02117597]
[1766031317368,0.001,2838.5,2838.2,1.7032]
[1766031317573,0.001,2838.5,2838.2,6.111]
[1766031317938,0.001,2838.5,2838.0,0.02117597]
[1766031318250,0.001,2838.5,2838.1,6.111]
[1766031318660,3.52399323,2838.5,2838.1,6.111]
[1766031319168,0.001,2838.5,2838.1,6.111]
[1766031319358,0.001,2838.5,2838.0,6.13217597]
[1766031321359,0.001,2838.5,2838.1,1.7032]
[1766031321761,0.001,2838.5,2838.0,6.13217597]
[1766031321959,0.001,2838.5,2838.0,0.02117597]
[1766031322162,0.001,2838.9,2838.4,0.02117597]
[1766031322339,0.001,2838.9,2838.4,6.13217597]
[1766031324170,0.001,2838.9,2838.4,0.02117597]
[1766031324353,0.75201115,2838.9,2838.2,0.02117597]
[1766031324553,0.75201115,2838.9,2838.4,0.02117597]
[1766031325273,6.71615307,2838.7,2838.0,0.02117597]
[1766031325447,6.71615307,2838.5,2837.8,0.02117597]
[1766031325646,0.67161531,2838.4,2837.8,0.02117597]
[1766031325843,6.71615307,2838.3,2837.5,0.002]
[1766031326043,6.71615307,2838.1,2837.4,0.002]
[1766031326757,7.12165707,2838.3,2837.4,0.002]
[1766031326966,7.12165707,2838.3,2837.5,0.02117597]
[1766031327167,0.83512724,2838.2,2837.5,0.02117597]
[1766031328579,4.35860552,2838.2,2837.5,0.02117597]
[1766031330474,0.558,2838.1,2837.5,0.02117597]
[1766031331580,3.52360817,2838.0,2837.5,0.02317597]
[1766031337389,7.04721634,2838.0,2837.3,0.02117597]
[1766031337596,7.04721634,2838.0,2836.9,0.02117597]
[1766031337597,6.71615307,2837.5,2836.9,0.02117597]
[1766031337962,6.71615307,2837.5,2836.8,0.46638023]
[1766031337963,6.71615307,2837.5,2836.8,0.02317597]
[1766031338564,6.71615307,2837.5,2836.6,0.56]
[1766031338565,3.52435328,2837.4,2836.6,0.56]
[1766031338767,4.90081675,2837.4,2836.7,0.02117597]
[1766031340268,1.37646347,2837.4,2836.7,0.02117597]
[1766031341499,4.90083277,2837.4,2836.7,0.02117597]
[1766031341790,4.90083277,2837.4,2836.7,1.72437597]
[1766031341978,3.5243693,2837.4,2836.7,1.72437597]
[1766031342294,3.5243693,2837.4,2836.7,0.02117597]
[1766031342869,3.52428336,2837.5,2836.8,6.106]
[1766031343598,3.9884851,2837.6,2836.8,6.106]
[1766031343896,3.9884851,2837.6,2836.9,0.02117597]
[1766031344196,0.80704978,2837.5,2836.9,0.02117597]
[1766031347301,4.3312904,2837.5,2836.9,0.02117597]
[1766031347500,4.8892904,2837.5,2836.9,0.02117597]
[1766031347897,0.80704978,2837.5,2836.9,0.02117597]
[1766031348105,0.558,2837.5,2836.9,6.12717597]
[1766031348898,3.98854345,2837.6,2836.9,6.12717597]
[1766031349200,3.98854345,2837.6,2836.9,0.02117597]
[1766031352274,0.46438023,2837.6,2836.7,0.02117597]
[1766031352499,0.46438023,2837.6,2837.0,6.12717597]
[1766031353202,0.46438023,2837.6,2837.2,0.02117597]
[1766031353505,0.46438023,2837.7,2837.3,0.02117597]
[1766031354002,0.46438023,2837.6,2837.3,0.02117597]
[1766031356308,3.5241348,2837.6,2837.3,0.02117597]
[1766031356607,0.46438023,2837.7,2837.3,0.02117597]
[1766031357089,0.47486469,2837.7,2837.3,0.02117597]
[1766031358378,3.52410487,2837.6,2837.3,0.02117597]
[1766031358578,3.52410487,2837.6,2837.0,0.57917597]
[1766031358778,0.46438023,2837.6,2837.2,6.12717597]
[1766031360018,0.46438023,2837.6,2837.0,0.57917597]
[1766031360229,0.46538023,2837.6,2837.2,0.02117597]
[1766031360605,0.46538023,2837.6,2837.2,6.12717597]
[1766031361315,0.46538023,2837.6,2837.2,1.83447597]
[1766031361518,0.46538023,2837.6,2837.2,0.02117597]
[1766031361681,0.001,2837.6,2837.2,1.83447597]
[1766031361878,0.001,2837.6,2837.4,0.02117597]
[1766031362127,0.001,2838.0,2837.4,0.02117597]
[1766031362281,3.52461521,2838.0,2837.4,0.02117597]
[1766031362720,0.001,2838.0,2837.4,0.02117597]
[1766031367115,0.001,2838.0,2837.6,0.02117597]
[1766031368432,0.001,2838.0,2837.6,1.67957597]
[1766031370598,0.001,2838.0,2837.6,6.05727597]
[1766031372726,0.001,2838.0,2837.6,0.02117597]
[1766031379613,0.001,2838.0,2837.6,5.89137597]
[1766031380519,0.001,2838.0,2837.6,0.02117597]
[1766031382232,0.75221939,2838.0,2837.5,0.002]
[1766031382397,3.52463619,2838.0,2837.5,0.002]
[1766031384335,0.001,2838.0,2837.4,0.02117597]
[1766031384730,0.001,2838.0,2837.2,0.558]
[1766031384930,0.558,2837.9,2837.0,0.02117597]
[1766031385629,0.558,2837.9,2836.9,0.002]
[1766031385837,0.558,2837.9,2837.5,0.002]
[1766031386406,7.047713,2837.8,2837.5,0.002]
[1766031386609,0.7605713,2837.7,2837.5,0.002]
[1766031388612,3.52410487,2837.6,2837.5,0.002]
[1766031389439,4.28459345,2837.7,2837.5,0.002]
[1766031391738,7.8086156,2837.7,2836.9,0.002]
[1766031391914,7.8086156,2837.7,2837.0,0.02117597]
[1766031392213,0.78086156,2837.6,2837.0,0.02117597]
[1766031392416,0.558,2837.5,2837.0,0.02117597]
[1766031392711,0.558,2837.5,2836.7,0.02117597]
[1766031392712,4.08232327,2837.5,2836.7,0.02117597]
[1766031392913,7.60664654,2837.5,2836.6,0.002]
[1766031394524,17.85041396,2837.5,2836.6,0.002]
[1766031394714,7.0494519,2837.1,2836.4,0.002]
[1766031394931,0.558,2837.0,2836.3,0.02317597]
[1766031395237,0.558,2837.0,2836.3,0.4875562]
[1766031395742,0.558,2837.0,2836.5,0.02117597]
[1766031395943,3.52451966,2837.3,2836.5,5.89137597]
[1766031396113,0.558,2837.3,2836.8,0.46438023]
[1766031396312,0.558,2837.3,2836.9,0.02117597]
[1766031396817,0.558,2837.4,2836.9,4.18117597]
[1766031397045,0.558,2837.4,2836.9,5.89137597]
[1766031397239,0.001,2838.0,2836.9,0.02117597]
[1766031397548,8.6649238,2837.9,2837.0,5.89137597]
[1766031398151,0.558,2837.8,2837.0,5.89137597]
[1766031398822,3.52398068,2837.7,2837.0,0.02117597]
[1766031399148,0.46438023,2837.6,2837.0,0.02117597]
[1766031399950,4.08187228,2837.8,2837.4,4.16]
[1766031399951,0.558,2837.8,2837.4,4.16]
[1766031400156,0.559,2838.0,2837.7,1.73137597]
[1766031400460,0.001,2838.0,2837.7,5.89137597]
[1766031400651,0.001,2838.0,2837.8,5.8702]
[1766031401203,0.558,2838.3,2837.9,5.8702]
[1766031401355,0.558,2838.3,2838.0,5.8702]
[1766031401928,3.52293412,2838.6,2838.0,5.8702]
[1766031402148,0.46438023,2838.5,2837.7,0.02117597]
[1766031402447,0.46438023,2838.5,2837.9,4.48787597]
[1766031402745,3.9874153,2838.5,2837.9,0.02117597]
[1766031404052,0.46438023,2838.5,2837.9,6.25617597]
[1766031404455,0.46438023,2838.4,2838.0,6.235]
[1766031405052,4.74775347,2838.6,2838.0,6.235]
[1766031406647,4.74775347,2838.6,2837.9,0.02117597]
[1766031407031,4.74775347,2838.6,2837.9,1.78947597]
[1766031407552,1.22483636,2838.6,2837.9,6.25617597]
[1766031407748,0.46438023,2838.5,2837.9,6.25617597]
[1766031408539,0.46438023,2838.5,2837.9,0.02117597]
[1766031408746,0.46438023,2838.5,2837.7,4.48787597]
[1766031408957,3.52311161,2838.4,2837.7,0.02117597]
[1766031409558,3.52311161,2838.4,2837.9,0.02117597]
[1766031409955,3.98740982,2838.5,2837.9,0.02117597]
[1766031410131,3.98740982,2838.5,2837.9,1.78947597]
[1766031410756,3.98740982,2838.5,2837.9,0.02117597]
[1766031412160,0.001,2838.6,2837.9,0.02117597]
[1766031412362,3.98828397,2838.6,2838.2,1.7683]
[1766031412660,0.46538023,2838.6,2838.2,1.7683]
[1766031412852,0.46538023,2838.6,2838.2,6.235]
[1766031413053,0.558,2838.5,2838.2,6.235]
[1766031413250,0.558,2838.5,2838.1,0.02117597]
[1766031413559,1.01261718,2838.5,2837.9,0.02117597]
[1766031414145,0.46438023,2838.4,2837.9,1.78947597]
[1766031414336,0.46438023,2838.4,2837.9,6.25617597]
[1766031414662,0.46438023,2838.4,2837.9,0.02117597]
[1766031414865,1.3167751,2838.4,2837.9,0.02117597]
[1766031416263,0.85239487,2838.4,2837.9,0.02117597]
[1766031416466,1.3167751,2838.4,2838.0,6.235]
[1766031416834,4.37552402,2838.4,2837.9,0.02117597]
[1766031417162,4.54541989,2838.5,2837.9,0.02117597]
[1766031417360,3.98741989,2838.5,2837.9,0.02117597]
[1766031417564,0.559,2838.4,2837.9,0.02117597]
[1766031417752,0.558,2838.3,2837.7,6.25617597]
[1766031417952,0.558,2838.3,2837.9,0.02117597]
[1766031418334,4.08123694,2838.3,2837.9,0.02117597]
[1766031418534,4.49576064,2838.3,2837.9,0.02117597]
[1766031418734,0.9725237,2838.3,2837.9,0.02117597]